Department Family,Entity,Date,Expense Type,Expense Area,Supplier,Transaction Number,Amount
DOH,London Ambulance Service NHS Trust,04/09/2013,Cleaning Of Premises,Estate Management,Lakethorne Ltd,90792,57115.69
DOH,London Ambulance Service NHS Trust,04/09/2013,Data Network Rental,Networks Non Pay,Bt Global Services,89354,66969.2
DOH,London Ambulance Service NHS Trust,04/09/2013,Private Ambulance Hire,Deputy Director Of Operations,X9 Services,91118,33610.75
DOH,London Ambulance Service NHS Trust,04/09/2013,Private Ambulance Hire,Deputy Director Of Operations,X9 Services,91123,36702.52
DOH,London Ambulance Service NHS Trust,04/09/2013,Private Ambulance Hire,Deputy Director Of Operations,X9 Services,91126,34167.62
DOH,London Ambulance Service NHS Trust,04/09/2013,Rent,Cody Road Ambulance Station,Cbre Ltd,90484,62915.4
DOH,London Ambulance Service NHS Trust,04/09/2013,St John Ambulance Service,Deputy Director Of Operations,St John Ambulance Londonprince,90934,130945.83
DOH,London Ambulance Service NHS Trust,04/09/2013,Storage,Corporate Logistics,Access Self Storage,90936,26228.25
DOH,London Ambulance Service NHS Trust,04/09/2013,Tyres,Fleet Support Services,Ats Euromaster Ltd,88130,25489.9
DOH,London Ambulance Service NHS Trust,11/09/2013,Cac Tools Maintenance,Software Development & Support,Trustmarque Solutions,90935,89917.07
DOH,London Ambulance Service NHS Trust,11/09/2013,Cleaning Of Vehicles Makeready,Vehicle Resouce Centre,Lightbridge Support Services,91441,55125.29
DOH,London Ambulance Service NHS Trust,11/09/2013,Drugs,Balance Sheet,Nipro Diagnostics Uk Limited,91618,102000
DOH,London Ambulance Service NHS Trust,11/09/2013,Lease Costs For A&E Vehicles,Deputy Director Of Operations,Siemens Financial Services Ltd,91845,42448.87
DOH,London Ambulance Service NHS Trust,11/09/2013,Private Ambulance Hire,Deputy Director Of Operations,Mediforce Ltd,91371,25725
DOH,London Ambulance Service NHS Trust,11/09/2013,Private Ambulance Hire,Deputy Director Of Operations,Mediforce Ltd,91375,39262.5
DOH,London Ambulance Service NHS Trust,11/09/2013,Private Ambulance Hire,Deputy Director Of Operations,X9 Services,91356,33913.69
DOH,London Ambulance Service NHS Trust,11/09/2013,Private Ambulance Hire,Deputy Director Of Operations,X9 Services,91822,34027.29
DOH,London Ambulance Service NHS Trust,11/09/2013,Private Ambulance Hire,Deputy Director Of Operations,X9 Services,91823,33842.41
DOH,London Ambulance Service NHS Trust,11/09/2013,Private Ambulance Hire,Deputy Director Of Operations,X9 Services,91825,34619.81
DOH,London Ambulance Service NHS Trust,11/09/2013,Rent,Fielden House,Fielden House Investment Ltd,91779,28067.7
DOH,London Ambulance Service NHS Trust,11/09/2013,Service Charges,Fielden House,Fielden House Investment Ltd,91779,7580.68
DOH,London Ambulance Service NHS Trust,11/09/2013,Rent,Fielden House,Fielden House Investment Ltd,91780,31335.46
DOH,London Ambulance Service NHS Trust,11/09/2013,Rent,Hart,Jones Lang Lasalle,91782,58764
DOH,London Ambulance Service NHS Trust,11/09/2013,Service Charges,Hart,Jones Lang Lasalle,91782,1993.2
DOH,London Ambulance Service NHS Trust,11/09/2013,Rent,Pocock Street,Tlg Llc,91087,50451.98
DOH,London Ambulance Service NHS Trust,11/09/2013,St John Ambulance Service,Deputy Director Of Operations,St John Ambulance Londonprince,91494,148916.67
DOH,London Ambulance Service NHS Trust,11/09/2013,Technical Support - Contract,Capita Contract,Capita Secure Information Solutions Ltd,91139,47652.57
DOH,London Ambulance Service NHS Trust,18/09/2013,Agency Professional Staff,Software Development & Support,Capita Resourcing Ltd,92524,25092
DOH,London Ambulance Service NHS Trust,18/09/2013,General Reserve,Director Of Im&T,Northrop Grumman Information Technology,92945,74352.6
DOH,London Ambulance Service NHS Trust,18/09/2013,Tyres,Fleet Support Services,Ats Euromaster Ltd,92231,79530.17
DOH,London Ambulance Service NHS Trust,18/09/2013,Vehicle Recovery,Fleet Support Services,Rac Motoring Services,92510,30000
DOH,London Ambulance Service NHS Trust,25/09/2013,Capitalised Software,Capital,Dell Computer Corporation Ltd,93372,291622.01
DOH,London Ambulance Service NHS Trust,25/09/2013,Cleaning Of Vehicles Makeready,Corporate Logistics,Rentokil,93935,211755.25
DOH,London Ambulance Service NHS Trust,25/09/2013,Lease Costs For A&E Vehicles,Vehicle Leases,De Lage Landen Leasing Ltd,93898,104430.17
DOH,London Ambulance Service NHS Trust,25/09/2013,Lost/Damaged Airwave Radios,Deputy Director Of Operations,Airwave Solutions Limited,93652,35988
DOH,London Ambulance Service NHS Trust,25/09/2013,Occupational Health Fees,Staff Support,Guys & St Thomas Nhs Foundation Trust,828,31863.4
DOH,London Ambulance Service NHS Trust,25/09/2013,Occupational Health Fees,Staff Support,Guys & St Thomas Nhs Foundation Trust,829,44855.22
DOH,London Ambulance Service NHS Trust,25/09/2013,Rent,Bounds Green Estates,Dron & Wright,94189,41500
DOH,London Ambulance Service NHS Trust,25/09/2013,Rent,Islington Ambulance Revenue Co,Gcl Client A/C John De Stefano Man Serv Rent,93689,42000
DOH,London Ambulance Service NHS Trust,25/09/2013,Rent,Neasden Estates,Amas Ltd,93651,30311.26
DOH,London Ambulance Service NHS Trust,25/09/2013,Service Charges,Neasden Estates,Amas Ltd,93651,1074.3
DOH,London Ambulance Service NHS Trust,25/09/2013,Rent,Southwark Bridge Road,Equisys Plc,93686,31687.5
DOH,London Ambulance Service NHS Trust,25/09/2013,Service Charges,Southwark Bridge Road,Equisys Plc,93686,7645.76
DOH,London Ambulance Service NHS Trust,25/09/2013,Tyres,Fleet Support Services,Ats Euromaster Ltd,93724,49164.02
DOH,London Ambulance Service NHS Trust,03/09/2013,Ensign Insurance Debtor,Control Accounts,QBE International Insurance T/A Ensign,6809,231414.58
DOH,London Ambulance Service NHS Trust,17/09/2013,BP Control Account,Control Accounts,BP Oil,7026,243107.16
DOH,London Ambulance Service NHS Trust,24/09/2013,Child Care Arrangements,Payroll,Busy Bees Childcare Ltd,7008,25585.35
DOH,London Ambulance Service NHS Trust,26/09/2013,BOC Control Account,Control Accounts,British Oxygen,7025,96259.15
DOH,London Ambulance Service NHS Trust,30/09/2013,BP Control Account,Control Accounts,BP Oil,7222,230377.34
DOH,London Ambulance Service NHS Trust,17/09/2013,CNST Contributions,Legal Services,NHSLA,6988,82975.28
DOH,London Ambulance Service NHS Trust,17/09/2013,Liability to 3rd Party Scheme,Legal Services,NHSLA,6988,24019.16
DOH,London Ambulance Service NHS Trust,17/09/2013,Property Expenses Scheme,Legal Services,NHSLA,6988,2183.56
